fUSD/lending_fUSD_20250811
["ID","MTS","AMOUNT","RATE_DAILY","PERIOD"]
[378547218,1754910661384,-400.0,0.00016902,2]
[378547219,1754910661394,-400.0,0.00016902,2]
[378547220,1754910661403,-652.13,0.00016902,2]
[378547221,1754910661413,-540.45,0.00016902,2]
[378547222,1754910661422,-1073.89,0.00016902,2]
[378547223,1754910661432,-400.0,0.00016902,2]
[378547224,1754910661441,-1644.76,0.00016902,2]
[378547225,1754910661451,-400.0,0.00016902,2]
[378547226,1754910661460,-400.0,0.00016902,2]
[378547227,1754910661470,-1758.76,0.00016902,2]
[378547228,1754910661479,-400.0,0.00016902,2]
[378547229,1754910661489,-400.0,0.00016902,2]
[378547230,1754910661498,-908.85,0.00016902,2]
[378547231,1754910661508,-400.0,0.00016902,2]
[378547232,1754910661517,-595.03,0.00016902,2]
[378547233,1754910661527,-3383.61,0.00016902,2]
[378547234,1754910661536,-400.0,0.00016902,2]
[378547235,1754910661546,-400.0,0.00016902,2]
[378547236,1754910661556,-400.0,0.00016902,2]
[378547237,1754910661566,-661.36,0.00016902,2]
[378547238,1754910661575,-400.0,0.00016902,2]
[378547239,1754910661585,-400.0,0.00016902,2]
[378547240,1754910661597,-400.0,0.00016902,2]
[378547241,1754910661606,-1144.55,0.00016902,2]
[378547242,1754910661616,-701.9,0.00016902,2]
[378547243,1754910661627,-400.0,0.00016902,2]
[378547244,1754910661637,-400.0,0.00016902,2]
[378547245,1754910661647,-400.0,0.00016902,2]
[378547246,1754910661656,-1602.79,0.00016902,2]
[378547247,1754910661666,-519.44,0.00016902,2]
[378547248,1754910661675,-400.0,0.00016902,2]
[378547249,1754910661685,-550.52,0.00016902,2]
[378547250,1754910661694,-400.0,0.00016902,2]
[378547251,1754910661704,-151.10640303,0.00016902,2]
[378547252,1754910661714,-1628.44,0.00016902,2]
[378547253,1754910661724,-956.79,0.00016902,2]
[378547254,1754910661734,-400.0,0.00016902,2]
[378547255,1754910661743,-1060.99,0.00016902,2]
[378547256,1754910661753,-1194.2,0.00016902,2]
[378547257,1754910661763,-648.95,0.00016902,2]
[378547258,1754910661773,-512.58,0.00016902,2]
[378547259,1754910661783,-400.0,0.00016902,2]
[378547260,1754910661792,-403.80597123,0.00016902,2]
[378547261,1754910661802,-400.0,0.00016902,2]
[378547262,1754910661811,-431.21,0.00016902,2]
[378547263,1754910661821,-402.86350064,0.00016902,2]
[378547264,1754910661830,-1283.14,0.00016902,2]
[378547265,1754910661840,-400.0,0.00016902,2]
[378547266,1754910661852,-1200.55,0.00016902,2]
[378547267,1754910661862,-400.0,0.00016902,2]
[378547268,1754910661871,-1917.77,0.00016902,2]
[378547269,1754910661882,-663.76,0.00016902,2]
[378547270,1754910661892,-400.0,0.00016902,2]
[378547271,1754910661901,-400.0,0.00016902,2]
[378547272,1754910661914,-400.0,0.00016902,2]
[378547273,1754910661924,-715.0,0.00016902,2]
[378547274,1754910661937,-400.0,0.00016902,2]
[378547275,1754910661956,-1211.99,0.00016902,2]
[378547276,1754910661973,-795.86,0.00016902,2]
[378547277,1754910661982,-400.0,0.00016902,2]
[378547278,1754910661992,-994.66,0.00016902,2]
[378547279,1754910662001,-400.0,0.00016902,2]
[378547280,1754910662010,-943.97,0.00016902,2]
[378547281,1754910662020,-938.89,0.00016902,2]
[378547282,1754910662031,-490.3,0.00016902,2]
[378547283,1754910662041,-541.09,0.00016902,2]
[378547284,1754910662050,-1212.52,0.00016902,2]
[378547285,1754910662059,-515.442087,0.00016902,2]
[378547286,1754910662069,-661.91,0.00016902,2]
[378547287,1754910662078,-400.0,0.00016902,2]
[378547288,1754910662089,-515.442087,0.00016902,2]
[378547289,1754910662101,-400.0,0.00016902,2]
[378547290,1754910662112,-2068.54,0.00016902,2]
[378547291,1754910662122,-617.32,0.00016902,2]
[378547292,1754910662131,-1047.25,0.00016902,2]
[378547293,1754910662141,-970.73,0.00016902,2]
[378547294,1754910662150,-400.0,0.00016902,2]
[378547295,1754910662160,-300.0,0.00016902,2]
[378547296,1754910662169,-539.803399,0.00016902,2]
[378547297,1754910662179,-400.0,0.00016902,2]
[378547298,1754910662188,-1207.8,0.00016902,2]
[378547299,1754910662198,-467.34,0.00016902,2]
[378547300,1754910662207,-539.803399,0.00016902,2]
[378547301,1754910662217,-729.38,0.00016902,2]
[378547302,1754910662226,-400.0,0.00016902,2]
[378547303,1754910662236,-626.23,0.00016902,2]
[378547304,1754910662245,-967.16,0.00016902,2]
[378547305,1754910662254,-400.0,0.00016902,2]
[378547306,1754910662264,-1464.83,0.00016902,2]
[378547307,1754910662274,-792.997131,0.00016902,2]
[378547308,1754910662283,-840.59,0.00016902,2]
[378547309,1754910662293,-938.37,0.00016902,2]
[378547310,1754910662302,-400.0,0.00016902,2]
[378547311,1754910662311,-792.997131,0.00016902,2]
[378547312,1754910662321,-1694.57,0.00016902,2]
[378547313,1754910662330,-3349.48,0.00016902,2]
[378547314,1754910662340,-404.29869794,0.00016902,2]
[378547315,1754910662353,-402.67,0.00016902,2]
[378547316,1754910662363,-1193.92,0.00016902,2]
[378547317,1754910662372,-400.0,0.00016902,2]
[378547318,1754910662382,-558.93,0.00016902,2]
[378547319,1754910662391,-1523.27,0.00016902,2]
[378547320,1754910662401,-500.0,0.00016902,2]
[378547321,1754910662411,-886.23,0.00016902,2]
[378547322,1754910662421,-400.0,0.00016902,2]
[378547323,1754910662431,-400.0,0.00016902,2]
[378547324,1754910662440,-400.0,0.00016902,2]
[378547325,1754910662450,-1427.36,0.00016902,2]
[378547326,1754910662459,-401.03778541,0.00016902,2]
[378547327,1754910662469,-400.0,0.00016902,2]
[378547328,1754910662479,-400.0,0.00016902,2]
[378547329,1754910662488,-400.0,0.00016902,2]
[378547330,1754910662498,-1026.1,0.00016902,2]
[378547331,1754910662508,-872.14,0.00016902,2]
[378547332,1754910662517,-1061.2,0.00016902,2]
[378547333,1754910662526,-400.0,0.00016902,2]
[378547334,1754910662536,-584.28,0.00016902,2]
[378547335,1754910662546,-400.0,0.00016902,2]
[378547336,1754910662556,-400.0,0.00016902,2]
[378547337,1754910662565,-400.0,0.00016902,2]
[378547338,1754910662574,-1255.11,0.00016902,2]
[378547339,1754910662585,-400.0,0.00016902,2]
[378547340,1754910662597,-609.55,0.00016902,2]
[378547341,1754910662606,-411.85258956,0.00016902,2]
[378547342,1754910662615,-631.31,0.00016902,2]
[378547343,1754910662625,-400.0,0.00016902,2]
[378547344,1754910662634,-500.0,0.00016902,2]
[378547345,1754910662644,-400.0,0.00016902,2]
[378547346,1754910662653,-400.0,0.00016902,2]
[378547347,1754910662663,-1004.07,0.00016902,2]
[378547348,1754910662672,-400.0,0.00016902,2]
[378547349,1754910662682,-1716.01,0.00016902,2]
[378547350,1754910662691,-400.0,0.00016902,2]
[378547351,1754910662701,-400.0,0.00016902,2]
[378547352,1754910662710,-400.0,0.00016902,2]
[378547353,1754910662720,-400.0,0.00016902,2]
[378547354,1754910662729,-400.0,0.00016902,2]
[378547355,1754910662739,-1326.89,0.00016902,2]
[378547356,1754910662749,-559.55,0.00016902,2]
[378547357,1754910662758,-641.76,0.00016902,2]
[378547358,1754910662767,-400.0,0.00016902,2]
[378547359,1754910662777,-528.23,0.00016902,2]
[378547360,1754910662786,-151.0,0.00016902,2]
[378547361,1754910662795,-400.0,0.00016902,2]
[378547362,1754910662805,-162.511509,0.00016902,2]
[378547363,1754910662814,-1529.17,0.00016902,2]
[378547364,1754910662824,-400.0,0.00016902,2]
[378547365,1754910662834,-162.511509,0.00016902,2]
[378547366,1754910662846,-627.8,0.00016902,2]
[378547367,1754910662855,-400.0,0.00016902,2]
[378547368,1754910662865,-1642.46,0.00016902,2]
[378547369,1754910662875,-1164.71,0.00016902,2]
[378547370,1754910662885,-814.3,0.00016902,2]
[378547371,1754910662895,-522.6,0.00016902,2]
[378547372,1754910662904,-1861.96,0.00016902,2]
[378547373,1754910662914,-400.0,0.00016902,2]
[378547374,1754910662923,-500.0,0.00016902,2]
[378547375,1754910662933,-151.0,0.00016902,2]
[378547376,1754910662942,-400.0,0.00016902,2]
[378547377,1754910662953,-2115.57,0.00016902,2]
[378547378,1754910662963,-1251.58,0.00016902,2]
[378547379,1754910662972,-478.66,0.00016902,2]
[378547380,1754910662982,-400.0,0.00016902,2]
[378547381,1754910662991,-2321.52,0.00016902,2]
[378547382,1754910663001,-2117.55,0.00016902,2]
[378547383,1754910663011,-1000.0,0.00016902,2]
[378547384,1754910663020,-432.07,0.00016902,2]
[378547385,1754910663032,-1059.01,0.00016902,2]
[378547386,1754910663043,-1557.03,0.00016902,2]
[378547387,1754910663054,-624.45,0.00016902,2]
[378547388,1754910663064,-1850.27,0.00016902,2]
[378547389,1754910663075,-400.0,0.00016902,2]
[378547390,1754910663086,-1683.43,0.00016902,2]
[378547391,1754910663097,-794.93,0.00016902,2]
[378547392,1754910663108,-1570.24,0.00016902,2]
[378547393,1754910663118,-400.0,0.00016902,2]
[378547394,1754910663128,-2408.49,0.00016902,2]
[378547395,1754910663139,-689.38,0.00016902,2]
[378547396,1754910663149,-400.0,0.00016902,2]
[378547397,1754910663160,-400.0,0.00016902,2]
[378547398,1754910663170,-4543.43,0.00016902,2]
[378547399,1754910663180,-1067.65,0.00016902,2]
[378547400,1754910663190,-976.84,0.00016902,2]
[378547401,1754910663200,-400.0,0.00016902,2]
[378547402,1754910663209,-538.42,0.00016902,2]
[378547403,1754910663219,-400.0,0.00016902,2]
[378547404,1754910663229,-1105.0,0.00016902,2]
[378547405,1754910663239,-400.0,0.00016902,2]
[378547406,1754910663249,-400.0,0.00016902,2]
[378547407,1754910663365,-1288.96,0.00016902,2]
[378547408,1754910663375,-589.06,0.00016902,2]
[378547409,1754910663384,-1784.61,0.00016902,2]
[378547410,1754910663393,-691.95,0.00016902,2]
[378547411,1754910663402,-1133.69,0.00016902,2]
[378547412,1754910663412,-400.0,0.00016902,2]
[378547413,1754910663421,-600.68,0.00016902,2]
[378547414,1754910663430,-459.28361922,0.00016902,2]
[378547415,1754910663439,-400.0,0.00016902,2]
[378547416,1754910663448,-1305.4,0.00016902,2]
[378547417,1754910663459,-1346.64,0.00016902,2]
[378547418,1754910663468,-467.91,0.00016902,2]
[378547419,1754910663477,-1575.33,0.00016902,2]
[378547420,1754910663487,-960.91,0.00016902,2]
[378547421,1754910663496,-400.0,0.00016902,2]
[378547422,1754910663505,-4154.1,0.00016902,2]
[378547423,1754910663514,-1227.42,0.00016902,2]
[378547424,1754910663523,-1903.33,0.00016902,2]
[378547425,1754910663533,-400.0,0.00016902,2]
[378547426,1754910663542,-400.0,0.00016902,2]
[378547427,1754910663552,-281.41,0.00016902,2]
[378547428,1754910663562,-400.0,0.00016902,2]
[378547429,1754910663572,-400.0,0.00016902,2]
[378547430,1754910663592,-802.85,0.00016902,2]
[378547431,1754910663603,-400.0,0.00016902,2]
[378547432,1754910663614,-4884.28,0.00016902,2]
[378547433,1754910663624,-400.0,0.00016902,2]
[378547434,1754910663634,-400.0,0.00016902,2]
[378547435,1754910663644,-400.0,0.00016902,2]
[378547436,1754910663654,-400.0,0.00016902,2]
[378547437,1754910663664,-400.0,0.00016902,2]
[378547438,1754910663675,-658.77411,0.00016902,2]
[378547439,1754910663685,-400.0,0.00016902,2]
[378547440,1754910663696,-4135.85,0.00016902,2]
[378547441,1754910663707,-402.86550882,0.00016902,2]
[378547442,1754910663721,-1395.79,0.00016902,2]
[378547443,1754910663731,-1454.58,0.00016902,2]
[378547444,1754910663741,-400.0,0.00016902,2]
[378547445,1754910663751,-4066.54,0.00016902,2]
[378547446,1754910663761,-1736.92,0.00016902,2]
[378547447,1754910663771,-2103.57,0.00016902,2]
[378547448,1754910663780,-400.0,0.00016902,2]
[378547449,1754910663790,-400.0,0.00016902,2]
[378547450,1754910663801,-400.0,0.00016902,2]
[378547451,1754910663813,-400.0,0.00016902,2]
[378547452,1754910663823,-1010.84,0.00016902,2]
[378547453,1754910663833,-834.62,0.00016902,2]
[378547454,1754910663843,-2457.92,0.00016902,2]
[378547455,1754910663854,-400.0,0.00016902,2]
[378547456,1754910663863,-511.16,0.00016902,2]
[378547457,1754910663874,-400.0,0.00016902,2]
[378547458,1754910663883,-608.2,0.00016902,2]
[378547459,1754910663893,-400.0,0.00016902,2]
[378547460,1754910663903,-192.92,0.00016902,2]
[378547461,1754910663914,-2010.25,0.00016902,2]
[378547462,1754910663924,-400.0,0.00016902,2]
[378547463,1754910663936,-400.0,0.00016902,2]
[378547464,1754910663955,-4663.639356,0.00016902,2]
[378547465,1754910663966,-4663.639356,0.00016902,2]
[378547466,1754910663976,-400.0,0.00016902,2]
[378547467,1754910663987,-2008.14,0.00016902,2]
[378547468,1754910663997,-725.47,0.00016902,2]
[378547469,1754910664007,-400.0,0.00016902,2]
[378547470,1754910664016,-4663.639356,0.00016902,2]
[378547471,1754910664027,-1050.87,0.00016902,2]
[378547472,1754910664040,-4663.639356,0.00016902,2]
[378547473,1754910664050,-400.0,0.00016902,2]
[378547474,1754910664061,-1624.18,0.00016902,2]
[378547475,1754910664072,-745.02,0.00016902,2]
[378547476,1754910664082,-400.0,0.00016902,2]
[378547477,1754910664091,-1627.59,0.00016902,2]
[378547478,1754910664102,-590.98,0.00016902,2]
[378547479,1754910664113,-400.0,0.00016902,2]
[378547480,1754910664123,-400.0,0.00016902,2]
[378547481,1754910664132,-2228.99,0.00016902,2]
[378547482,1754910664142,-1487.87,0.00016902,2]
[378547483,1754910664152,-9392.77,0.00016902,2]
[378547484,1754910664162,-400.0,0.00016902,2]
[378547485,1754910664172,-400.0,0.00016902,2]
[378547486,1754910664181,-402.17931156,0.00016902,2]
[378547487,1754910664191,-2121.81,0.00016902,2]
[378547488,1754910664201,-1996.0,0.00016902,2]
[378547489,1754910664211,-450.07,0.00016902,2]
[378547490,1754910664221,-775.66,0.00016902,2]
[378547491,1754910664231,-1389.98,0.00016902,2]
[378547492,1754910664242,-2213.94,0.00016902,2]
[378547493,1754910664251,-2861.02,0.00016902,2]
[378547494,1754910664261,-400.0,0.00016902,2]
[378547495,1754910664271,-401.26,0.00016902,2]
[378547496,1754910664281,-640.91,0.00016902,2]
[378547497,1754910664291,-993.1,0.00016902,2]
[378547498,1754910664300,-1506.61,0.00016902,2]
[378547499,1754910664309,-533.96,0.00016902,2]
[378547500,1754910664318,-1421.09,0.00016902,2]
[378547501,1754910664328,-400.0,0.00016902,2]
[378547502,1754910664338,-400.0,0.00016902,2]
[378547503,1754910664349,-400.0,0.00016902,2]
[378547504,1754910664359,-400.0,0.00016902,2]
[378547505,1754910664368,-907.96,0.00016902,2]
[378547506,1754910664378,-904.77,0.00016902,2]
[378547507,1754910664389,-151.0,0.00016902,2]
[378547508,1754910664399,-400.0,0.00016902,2]
[378547509,1754910664409,-518.31293086,0.00016902,2]
[378547510,1754910664419,-151.0,0.00016902,2]
[378547511,1754910664428,-544.05,0.00016902,2]
[378547512,1754910664438,-1577.54,0.00016902,2]
[378547513,1754910664448,-1358.35,0.00016902,2]
[378547514,1754910664458,-7563.84,0.00016902,2]
[378547515,1754910664467,-400.0,0.00016902,2]
[378547516,1754910664477,-3139.09,0.00016902,2]
[378547517,1754910664487,-400.0,0.00016902,2]
[378547518,1754910664496,-1731.39,0.00016902,2]
[378547519,1754910664506,-3094.87,0.00016902,2]
[378547520,1754910664516,-850.76,0.00016902,2]
[378547521,1754910664525,-412.91226645,0.00016902,2]
[378547522,1754910664534,-407.3623493,0.00016902,2]
[378547523,1754910664544,-851.36,0.00016902,2]
[378547524,1754910664553,-515.49,0.00016902,2]
[378547525,1754910664563,-1515.84,0.00016902,2]
[378547526,1754910664573,-401.66379107,0.00016902,2]
[378547527,1754910664583,-421.27,0.00016902,2]
[378547528,1754910664592,-400.0,0.00016902,2]
[378547529,1754910664602,-563.05,0.00016902,2]
[378547530,1754910664612,-1429.37,0.00016902,2]
[378547531,1754910664622,-2025.77,0.00016902,2]
[378547532,1754910664632,-400.0,0.00016902,2]
[378547533,1754910664642,-437.714035,0.00016902,2]
[378547534,1754910664652,-437.714035,0.00016902,2]
[378547535,1754910664662,-753.94,0.00016902,2]
[378547536,1754910664672,-670.02,0.00016902,2]
[378547537,1754910664683,-244.72005008,0.00016902,2]
[378547538,1754910664694,-437.714035,0.00016902,2]
[378547539,1754910664705,-400.0,0.00016902,2]
[378547540,1754910664715,-437.714035,0.00016902,2]
[378547541,1754910664725,-400.0,0.00016902,2]
[378547542,1754910664736,-3701.89,0.00016902,2]
[378547543,1754910664747,-944.82,0.00016902,2]
[378547544,1754910664758,-2507.69,0.00016902,2]
[378547545,1754910664768,-5797.24,0.00016902,2]
[378547546,1754910664778,-407.39541398,0.00016902,2]
[378547547,1754910664788,-400.0,0.00016902,2]
[378547548,1754910664797,-606.01,0.00016902,2]
[378547549,1754910664807,-400.0,0.00016902,2]
[378547550,1754910664817,-408.12,0.00016902,2]
[378547551,1754910664826,-400.0,0.00016902,2]
[378547552,1754910664836,-1438.62,0.00016902,2]
[378547553,1754910664846,-400.0,0.00016902,2]
[378547554,1754910664855,-400.0,0.00016902,2]
[378547555,1754910664864,-400.0,0.00016902,2]
[378547556,1754910664874,-400.0,0.00016902,2]
[378547557,1754910664884,-1825.31,0.00016902,2]
[378547558,1754910664894,-400.0,0.00016902,2]
[378547559,1754910664904,-2391.9,0.00016902,2]
[378547560,1754910664913,-400.0,0.00016902,2]
[378547561,1754910664923,-400.0,0.00016902,2]
[378547562,1754910664935,-400.0,0.00016902,2]
[378547563,1754910664945,-5896.7,0.00016902,2]
[378547564,1754910664955,-412.9651481,0.00016902,2]
[378547565,1754910664964,-400.0,0.00016902,2]
[378547566,1754910664974,-400.0,0.00016902,2]
[378547567,1754910664983,-400.0,0.00016902,2]
[378547568,1754910664992,-400.0,0.00016902,2]
[378547569,1754910665002,-4974.38,0.00016902,2]
[378547570,1754910665012,-500.0,0.00016902,2]
[378547571,1754910665021,-1188.74,0.00016902,2]
[378547572,1754910665033,-400.0,0.00016902,2]
[378547573,1754910665043,-937.13,0.00016902,2]
[378547574,1754910665051,-2071.32,0.00016902,2]
[378547575,1754910665061,-3350.09,0.00016902,2]
[378547576,1754910665070,-900.74,0.00016902,2]
[378547577,1754910665081,-400.0,0.00016902,2]
[378547578,1754910665091,-400.0,0.00016902,2]
[378547579,1754910665101,-1200.43,0.00016902,2]
[378547580,1754910665111,-400.0,0.00016902,2]
[378547581,1754910665121,-1941.46,0.00016902,2]
[378547582,1754910665130,-1984.71,0.00016902,2]
[378547583,1754910665139,-400.0,0.00016902,2]
[378547584,1754910665148,-151.0,0.00016903,2]
[378547585,1754910665158,-151.0,0.00016903,2]
[378547586,1754910665167,-151.0,0.00016903,2]
[378547587,1754910665176,-151.0,0.00016903,2]
[378547588,1754910665185,-353.915417,0.00016903,2]
[378547589,1754910665195,-353.915417,0.00016903,2]
[378547590,1754910665204,-494.24,0.00016903,2]
[378547591,1754910665213,-400.0,0.00016903,2]
[378547592,1754910665223,-400.0,0.00016903,2]
[378547593,1754910665232,-413.22766166,0.00016903,2]
[378547594,1754910665241,-268.08581964,0.00016903,2]
[378547595,1754910665250,-400.0,0.00016903,2]
[378547596,1754910665259,-417.07894251,0.00016903,2]
[378547597,1754910665268,-400.0,0.00016903,2]
[378547598,1754910665277,-408.69907935,0.00016903,2]
[378547599,1754910665287,-402.7,0.00016903,2]
[378547600,1754910665296,-1062.18,0.00016903,2]
[378547601,1754910665306,-400.0,0.00016903,2]
[378547602,1754910665316,-525.30635729,0.00016903,2]
[378547603,1754910665325,-400.0,0.00016903,2]
[378547604,1754910665335,-400.0,0.00016903,2]
[378547605,1754910665344,-400.0,0.00016903,2]
[378547606,1754910665355,-974.74,0.00016903,2]
[378547607,1754910665364,-400.0,0.00016903,2]
[378547608,1754910665373,-400.0,0.00016903,2]
[378547609,1754910665382,-400.0,0.00016903,2]
[378547610,1754910665392,-384.16068882,0.00016903,2]
[378547611,1754910665401,-551.33,0.00016903,2]
[378547612,1754910665410,-400.0,0.00016903,2]
[378547613,1754910665419,-512.4,0.00016903,2]
[378547614,1754910665429,-406.89449504,0.00016903,2]
[378547615,1754910665439,-400.0,0.00016903,2]
[378547616,1754910665449,-400.0,0.00016903,2]
[378547617,1754910665458,-1030.02,0.00016903,2]
[378547618,1754910665467,-798.94,0.00016903,2]
[378547619,1754910665477,-400.0,0.00016903,2]
[378547620,1754910665486,-400.0,0.00016903,2]
[378547621,1754910665495,-671.57,0.00016903,2]
[378547622,1754910665505,-400.0,0.00016903,2]
[378547623,1754910665514,-402.03,0.00016903,2]
[378547624,1754910665523,-907.78,0.00016903,2]
[378547625,1754910665532,-400.0,0.00016903,2]
[378547626,1754910665542,-400.0,0.00016903,2]
[378547627,1754910665552,-400.0,0.00016903,2]
[378547628,1754910665562,-400.0,0.00016903,2]
[378547629,1754910665571,-400.0,0.00016903,2]
[378547630,1754910665582,-751.64,0.00016903,2]
[378547631,1754910665591,-400.0,0.00016903,2]
[378547632,1754910665602,-400.0,0.00016903,2]
[378547634,1754910665611,-400.0,0.00016903,2]
[378547635,1754910665621,-400.0,0.00016903,2]
[378547636,1754910665631,-443.68,0.00016903,2]
[378547637,1754910665640,-400.0,0.00016903,2]
[378547638,1754910665650,-426.14,0.00016903,2]
[378547639,1754910665660,-426.39493165,0.00016903,2]
[378547640,1754910665670,-400.0,0.00016903,2]
[378547641,1754910665680,-400.0,0.00016903,2]
[378547642,1754910665689,-400.0,0.00016903,2]
[378547643,1754910665699,-407.69652657,0.00016903,2]
[378547644,1754910665708,-400.0,0.00016903,2]
[378547645,1754910665718,-400.0,0.00016903,2]
[378547646,1754910665728,-400.0,0.00016903,2]
[378547647,1754910665737,-985.95,0.00016903,2]
[378547648,1754910665747,-400.0,0.00016903,2]
[378547649,1754910665757,-430.38,0.00016903,2]
[378547650,1754910665767,-498.40704043,0.00016903,2]
[378547651,1754910665776,-400.0,0.00016903,2]
[378547652,1754910665788,-400.0,0.00016903,2]
[378547653,1754910665798,-400.0,0.00016903,2]
[378547654,1754910665808,-174.34141517,0.00016903,2]
[378547655,1754910665818,-400.0,0.00016903,2]
[378547656,1754910665828,-829.14,0.00016903,2]
[378547657,1754910665838,-400.0,0.00016903,2]
[378547658,1754910665848,-913.11,0.00016903,2]
[378547659,1754910665859,-400.0,0.00016903,2]
[378547660,1754910665869,-400.0,0.00016903,2]
[378547661,1754910665879,-400.0,0.00016903,2]
[378547662,1754910665888,-400.0,0.00016903,2]
[378547663,1754910665898,-400.0,0.00016903,2]
[378547664,1754910665908,-1780.06,0.00016903,2]
[378547665,1754910665918,-400.0,0.00016903,2]
[378547666,1754910665929,-400.0,0.00016903,2]
[378547667,1754910665938,-400.0,0.00016903,2]
[378547668,1754910665948,-400.0,0.00016903,2]
[378547669,1754910665957,-400.0,0.00016903,2]
[378547670,1754910665967,-409.03464456,0.00016903,2]
[378547671,1754910665976,-412.95020354,0.00016903,2]
[378547672,1754910665986,-481.75448593,0.00016903,2]
[378547673,1754910665995,-586.38,0.00016903,2]
[378547674,1754910666005,-400.0,0.00016903,2]
[378547675,1754910666015,-400.0,0.00016903,2]
[378547676,1754910666024,-400.0,0.00016903,2]
[378547677,1754910666037,-400.0,0.00016903,2]
[378547678,1754910666047,-1036.16,0.00016903,2]
[378547679,1754910666056,-400.0,0.00016903,2]
[378547680,1754910666067,-400.0,0.00016903,2]
[378547681,1754910666078,-400.0,0.00016903,2]
[378547682,1754910666087,-400.0,0.00016903,2]
[378547683,1754910666098,-400.0,0.00016903,2]
[378547684,1754910666108,-455.35251962,0.00016903,2]
[378547685,1754910666120,-400.0,0.00016903,2]
[378547686,1754910666131,-400.0,0.00016903,2]
[378547687,1754910666142,-1259.74,0.00016903,2]
[378547688,1754910666151,-678.58,0.00016903,2]
[378547689,1754910666160,-153.23770444,0.00016903,2]
[378547690,1754910666170,-400.0,0.00016903,2]
[378547691,1754910666180,-400.0,0.00016903,2]
[378547692,1754910666190,-400.0,0.00016903,2]
[378547693,1754910666200,-709.26,0.00016903,2]
[378547694,1754910666210,-400.0,0.00016903,2]
[378547695,1754910666219,-1065.91,0.00016903,2]
[378547696,1754910666229,-414.68549647,0.00016903,2]
[378547697,1754910666238,-400.0,0.00016903,2]
[378547698,1754910666248,-400.0,0.00016903,2]
[378547699,1754910666257,-490.99,0.00016903,2]
[378547700,1754910666267,-400.0,0.00016903,2]
[378547701,1754910666276,-400.0,0.00016903,2]
[378547702,1754910666285,-400.0,0.00016903,2]
[378547703,1754910666294,-400.0,0.00016903,2]
[378547704,1754910666304,-1518.23,0.00016903,2]
[378547705,1754910666313,-400.0,0.00016903,2]
[378547706,1754910666323,-831.67,0.00016903,2]
[378547707,1754910666332,-972.47,0.00016903,2]
[378547708,1754910666342,-400.0,0.00016903,2]
[378547709,1754910666352,-400.0,0.00016903,2]
[378547710,1754910666361,-525.23,0.00016903,2]
[378547711,1754910666371,-400.0,0.00016903,2]
[378547712,1754910666380,-966.53,0.00016903,2]
[378547713,1754910666389,-400.0,0.00016903,2]
[378547714,1754910666398,-591.99,0.00016903,2]
[378547715,1754910666407,-402.3898779,0.00016903,2]
[378547716,1754910666416,-400.0,0.00016903,2]
[378547717,1754910666425,-424.76,0.00016903,2]
[378547718,1754910666434,-400.0,0.00016903,2]